[Event "Late-Titled-Tuesday-Blitz-April-16-2024"]
[Site "Chess.com"]
[Date "2024.04.16"]
[Round "2"]
[White "Statham_01"]
[Black "MrTattaglia"]
[Result "0-1"]
[WhiteElo "2609"]
[BlackElo "2955"]
[TimeControl "180+1"]
[EndTime "14:17:34 PDT"]
[Termination "MrTattaglia won by resignation"]

1. e4 {[%clk 0:03:00.9]} 1... c5 {[%clk 0:01:57.3]} 2. Nf3 {[%clk 0:02:59.4]}
2... a6 {[%clk 0:01:56.7]} 3. c3 {[%clk 0:02:59.2]} 3... e6 {[%clk 0:01:53.5]}
4. d4 {[%clk 0:02:59]} 4... d5 {[%clk 0:01:54.1]} 5. exd5 {[%clk 0:02:52.1]}
5... exd5 {[%clk 0:01:53]} 6. Bd3 {[%clk 0:02:52]} 6... Nf6 {[%clk 0:01:52.2]}
7. O-O {[%clk 0:02:51.3]} 7... Be7 {[%clk 0:01:49.1]} 8. dxc5 {[%clk 0:02:51.3]}
8... Bxc5 {[%clk 0:01:45]} 9. Re1+ {[%clk 0:02:50.2]} 9... Be7 {[%clk
0:01:45.1]} 10. Bg5 {[%clk 0:02:37.1]} 10... O-O {[%clk 0:01:43.6]} 11. Qa4
{[%clk 0:02:30.2]} 11... h6 {[%clk 0:01:39.5]} 12. Qh4 {[%clk 0:01:42]} 12...
hxg5 {[%clk 0:01:37.1]} 13. Nxg5 {[%clk 0:01:42.9]} 13... g6 {[%clk 0:01:36.8]}
14. Qh6 {[%clk 0:01:13]} 14... Nc6 {[%clk 0:00:13.6]} 15. Nd2 {[%clk 0:01:10.7]}
15... Qd6 {[%clk 0:00:11.6]} 16. Ndf3 {[%clk 0:01:02.1]} 16... Bg4 {[%clk
0:00:07.9]} 17. Re3 {[%clk 0:00:50.2]} 17... Bh5 {[%clk 0:00:07.7]} 18. h3
{[%clk 0:00:22.9]} 18... Rfe8 {[%clk 0:00:07.9]} 19. Nxf7 {[%clk 0:00:23.5]}
19... Kxf7 {[%clk 0:00:03.9]} 20. Ng5+ {[%clk 0:00:23.9]} 20... Kg8 {[%clk
0:00:04.6]} 21. Bxg6 {[%clk 0:00:15.3]} 21... Bf8 {[%clk 0:00:05.2]} 22. Bh7+
{[%clk 0:00:12.6]} 22... Kh8 {[%clk 0:00:05.5]} 23. Rxe8 {[%clk 0:00:11.2]}
23... Rxe8 {[%clk 0:00:05.2]} 24. Qxh5 {[%clk 0:00:04.4]} 24... Nxh5 {[%clk
0:00:06.1]} 25. Nf7+ {[%clk 0:00:05.3]} 25... Kxh7 {[%clk 0:00:06.8]} 26. Nxd6
{[%clk 0:00:06.2]} 26... Bxd6 {[%clk 0:00:07.5]} 0-1

[Event "Late-Titled-Tuesday-Blitz-April-16-2024"]
[Site "Chess.com"]
[Date "2024.04.16"]
[Round "2"]
[White "AlexeiShirov"]
[Black "albayo"]
[Result "1-0"]
[WhiteElo "2803"]
[BlackElo "2541"]
[TimeControl "180+1"]
[EndTime "14:17:35 PDT"]
[Termination "AlexeiShirov won by resignation"]

1. e4 {[%clk 0:03:00.9]} 1... c5 {[%clk 0:02:51.8]} 2. Nf3 {[%clk 0:03:00.5]}
2... g6 {[%clk 0:02:51.7]} 3. d4 {[%clk 0:02:59]} 3... cxd4 {[%clk 0:02:52.1]}
4. Qxd4 {[%clk 0:02:58.7]} 4... Nf6 {[%clk 0:02:51.9]} 5. Nc3 {[%clk 0:02:58.6]}
5... Nc6 {[%clk 0:02:51.8]} 6. Qa4 {[%clk 0:02:58.3]} 6... d6 {[%clk 0:02:52.3]}
7. e5 {[%clk 0:02:57.7]} 7... dxe5 {[%clk 0:02:53.2]} 8. Nxe5 {[%clk 0:02:56.4]}
8... Bd7 {[%clk 0:02:53.6]} 9. Nxd7 {[%clk 0:02:52.9]} 9... Qxd7 {[%clk
0:02:54]} 10. Bb5 {[%clk 0:02:35.1]} 10... Bg7 {[%clk 0:02:54]} 11. O-O {[%clk
0:02:21.3]} 11... O-O {[%clk 0:02:53.2]} 12. Bg5 {[%clk 0:02:16.3]} 12... a6
{[%clk 0:02:50.7]} 13. Bxc6 {[%clk 0:02:15.3]} 13... bxc6 {[%clk 0:02:50.8]} 14.
Rad1 {[%clk 0:02:12.8]} 14... Qf5 {[%clk 0:02:31.7]} 15. Be3 {[%clk 0:02:02.1]}
15... Rab8 {[%clk 0:02:16.3]} 16. b3 {[%clk 0:01:58.8]} 16... Qxc2 {[%clk
0:02:06.6]} 17. Rc1 {[%clk 0:01:54.5]} 17... Qf5 {[%clk 0:02:05]} 18. Qxa6
{[%clk 0:01:53.4]} 18... Ra8 {[%clk 0:01:53.9]} 19. Qe2 {[%clk 0:01:51.4]} 19...
Nd5 {[%clk 0:01:48.1]} 20. Na4 {[%clk 0:01:50.9]} 20... Nxe3 {[%clk 0:01:44.2]}
21. Qxe3 {[%clk 0:01:49.1]} 21... Qf6 {[%clk 0:00:58.4]} 22. Rfe1 {[%clk
0:01:45.5]} 22... Rfd8 {[%clk 0:00:50.3]} 23. Rc2 {[%clk 0:01:39.1]} 23... Rd6
{[%clk 0:00:44.8]} 24. g3 {[%clk 0:01:35.8]} 24... Rad8 {[%clk 0:00:44.4]} 25.
Qxe7 {[%clk 0:01:30.7]} 25... Rd2 {[%clk 0:00:36.6]} 26. Qxf6 {[%clk 0:01:26.8]}
26... Bxf6 {[%clk 0:00:37.5]} 27. Rec1 {[%clk 0:01:22.4]} 27... h5 {[%clk
0:00:31]} 28. Kg2 {[%clk 0:01:11.2]} 28... h4 {[%clk 0:00:28.7]} 29. Nb6 {[%clk
0:01:06.2]} 29... hxg3 {[%clk 0:00:21.5]} 30. hxg3 {[%clk 0:01:05]} 30... Kg7
{[%clk 0:00:20.3]} 31. Nc4 {[%clk 0:01:03.9]} 31... Rxc2 {[%clk 0:00:20.5]} 32.
Rxc2 {[%clk 0:01:03.3]} 32... Bd4 {[%clk 0:00:21]} 33. Nd2 {[%clk 0:01:00.7]}
33... Re8 {[%clk 0:00:19.3]} 34. Nf3 {[%clk 0:00:58.9]} 34... Ba7 {[%clk
0:00:15.1]} 35. Kf1 {[%clk 0:00:58]} 35... Re6 {[%clk 0:00:11.4]} 36. Re2 {[%clk
0:00:56.6]} 36... Rd6 {[%clk 0:00:11.6]} 37. Re7 {[%clk 0:00:56.2]} 37... Rd1+
{[%clk 0:00:11.5]} 38. Ke2 {[%clk 0:00:54.8]} 38... Bc5 {[%clk 0:00:11.9]} 39.
Kxd1 {[%clk 0:00:53.3]} 39... Bxe7 {[%clk 0:00:11.7]} 40. Ne5 {[%clk 0:00:52.9]}
40... c5 {[%clk 0:00:10.3]} 41. a4 {[%clk 0:00:52]} 41... Kf6 {[%clk 0:00:10.1]}
42. a5 {[%clk 0:00:47.5]} 42... Bd8 {[%clk 0:00:10.1]} 43. a6 {[%clk 0:00:46.8]}
1-0

[Event "Late-Titled-Tuesday-Blitz-April-16-2024"]
[Site "Chess.com"]
[Date "2024.04.16"]
[Round "2"]
[White "OriTaichman"]
[Black "DanielDardha2005"]
[Result "0-1"]
[WhiteElo "2561"]
[BlackElo "2866"]
[TimeControl "180+1"]
[EndTime "14:17:38 PDT"]
[Termination "DanielDardha2005 won by resignation"]

1. e4 {[%clk 0:02:56.6]} 1... b5 {[%clk 0:02:57.3]} 2. Bxb5 {[%clk 0:02:55.8]}
2... Bb7 {[%clk 0:02:57.7]} 3. Nc3 {[%clk 0:02:53.9]} 3... f5 {[%clk 0:02:57.4]}
4. exf5 {[%clk 0:02:33.1]} 4... Bxg2 {[%clk 0:02:58.3]} 5. Qh5+ {[%clk
0:02:33.1]} 5... g6 {[%clk 0:02:58.3]} 6. fxg6 {[%clk 0:02:34]} 6... Bg7 {[%clk
0:02:58.6]} 7. gxh7+ {[%clk 0:02:12.7]} 7... Kf8 {[%clk 0:02:58.3]} 8. Bc4
{[%clk 0:02:07.2]} 8... e6 {[%clk 0:02:37.1]} 9. hxg8=Q+ {[%clk 0:01:55.8]} 9...
Kxg8 {[%clk 0:02:38]} 10. Qg4 {[%clk 0:01:47.9]} 10... Bxh1 {[%clk 0:02:36.1]}
11. Nf3 {[%clk 0:01:43.4]} 11... Bxf3 {[%clk 0:02:28.4]} 12. Qxf3 {[%clk
0:01:44.3]} 12... Nc6 {[%clk 0:02:29]} 13. Bxe6+ {[%clk 0:01:39.7]} 13... dxe6
{[%clk 0:02:29.9]} 14. Qxc6 {[%clk 0:01:39.9]} 14... Rxh2 {[%clk 0:02:28.8]} 15.
d3 {[%clk 0:01:32.6]} 15... Rb8 {[%clk 0:02:13.2]} 16. Bf4 {[%clk 0:01:27.8]}
16... Rb6 {[%clk 0:01:59.5]} 17. Qe4 {[%clk 0:01:12.1]} 17... Rh4 {[%clk
0:01:57.6]} 18. Na4 {[%clk 0:01:05.5]} 18... Ra6 {[%clk 0:01:23.5]} 19. O-O-O
{[%clk 0:00:54.1]} 19... Qd5 {[%clk 0:01:20.2]} 20. Qg6 {[%clk 0:00:37.4]} 20...
Rxf4 {[%clk 0:01:14.6]} 21. Rg1 {[%clk 0:00:30.9]} 21... Rf7 {[%clk 0:01:14.2]}
22. Nc3 {[%clk 0:00:27.4]} 22... Qf5 {[%clk 0:01:11.6]} 23. Qg2 {[%clk
0:00:27.5]} 23... Rb6 {[%clk 0:01:06.1]} 24. Ne4 {[%clk 0:00:22.5]} 24... Qf4+
{[%clk 0:00:58.5]} 25. Kd1 {[%clk 0:00:21.4]} 25... Qf3+ {[%clk 0:00:57.5]} 26.
Qxf3 {[%clk 0:00:21.8]} 26... Rxf3 {[%clk 0:00:58.4]} 27. b3 {[%clk 0:00:22.2]}
27... Rf5 {[%clk 0:00:55.5]} 28. a4 {[%clk 0:00:19.1]} 28... Rb8 {[%clk
0:00:55.3]} 29. Ke2 {[%clk 0:00:18.8]} 29... a5 {[%clk 0:00:55.3]} 30. Rh1
{[%clk 0:00:18]} 30... Kf7 {[%clk 0:00:54.8]} 31. Rg1 {[%clk 0:00:16.9]} 31...
Rg8 {[%clk 0:00:52.4]} 32. Rh1 {[%clk 0:00:15.9]} 32... Rh8 {[%clk 0:00:52]} 33.
Rg1 {[%clk 0:00:16.2]} 33... Bf6 {[%clk 0:00:52.5]} 34. Ng3 {[%clk 0:00:15.1]}
34... Re5+ {[%clk 0:00:52.3]} 35. Ne4 {[%clk 0:00:15.3]} 35... Be7 {[%clk
0:00:48.7]} 36. Ke3 {[%clk 0:00:14.6]} 36... Rh3+ {[%clk 0:00:48.3]} 37. Kd2
{[%clk 0:00:13.4]} 37... Rh2 {[%clk 0:00:47.1]} 38. Rg3 {[%clk 0:00:12.7]} 38...
Rf5 {[%clk 0:00:40.9]} 39. Ke2 {[%clk 0:00:11.1]} 39... Bc5 {[%clk 0:00:40.1]}
40. Rg5 {[%clk 0:00:03.1]} 40... Rhxf2+ {[%clk 0:00:38.8]} 41. Nxf2 {[%clk
0:00:02.8]} 41... Rxg5 {[%clk 0:00:38.3]} 42. Ne4 {[%clk 0:00:03.6]} 42... Rg2+
{[%clk 0:00:38]} 43. Kf3 {[%clk 0:00:04.1]} 43... Rxc2 {[%clk 0:00:38.2]} 0-1

[Event "Late-Titled-Tuesday-Blitz-April-16-2024"]
[Site "Chess.com"]
[Date "2024.04.16"]
[Round "2"]
[White "DinaBelenkaya"]
[Black "olawsson"]
[Result "0-1"]
[WhiteElo "2427"]
[BlackElo "2136"]
[TimeControl "180+1"]
[EndTime "14:17:38 PDT"]
[Termination "olawsson won on time"]

1. Nf3 {[%clk 0:02:55.3]} 1... d6 {[%clk 0:02:59.6]} 2. g3 {[%clk 0:02:52.9]}
2... e5 {[%clk 0:02:59.6]} 3. Bg2 {[%clk 0:02:53.6]} 3... f5 {[%clk 0:02:59.9]}
4. d3 {[%clk 0:02:50]} 4... Nf6 {[%clk 0:03:00.4]} 5. Nbd2 {[%clk 0:02:49]} 5...
Be7 {[%clk 0:03:00.2]} 6. e4 {[%clk 0:02:48.6]} 6... O-O {[%clk 0:02:59.7]} 7.
h3 {[%clk 0:02:43]} 7... fxe4 {[%clk 0:02:32.9]} 8. dxe4 {[%clk 0:02:41.8]} 8...
Kh8 {[%clk 0:02:29.8]} 9. Qe2 {[%clk 0:02:39.8]} 9... Be6 {[%clk 0:02:28.2]} 10.
Nc4 {[%clk 0:02:38.5]} 10... Nc6 {[%clk 0:02:08.9]} 11. c3 {[%clk 0:02:32.9]}
11... Qd7 {[%clk 0:02:09]} 12. Bd2 {[%clk 0:02:15.6]} 12... b5 {[%clk
0:02:03.7]} 13. Na3 {[%clk 0:02:14.7]} 13... a6 {[%clk 0:01:52.3]} 14. b3 {[%clk
0:01:53.6]} 14... d5 {[%clk 0:01:18.7]} 15. exd5 {[%clk 0:01:48.1]} 15... Bxd5
{[%clk 0:01:12]} 16. Nc2 {[%clk 0:01:42.7]} 16... e4 {[%clk 0:01:10]} 17. Nfd4
{[%clk 0:01:34.5]} 17... Ne5 {[%clk 0:01:01.1]} 18. O-O {[%clk 0:01:26.1]} 18...
c5 {[%clk 0:01:00.7]} 19. c4 {[%clk 0:01:11.3]} 19... Bb7 {[%clk 0:00:44.7]} 20.
f4 {[%clk 0:01:01.7]} 20... Nd3 {[%clk 0:00:31]} 21. Nxb5 {[%clk 0:00:13.1]}
21... axb5 {[%clk 0:00:29.4]} 22. cxb5 {[%clk 0:00:14]} 22... Qxb5 {[%clk
0:00:23]} 23. Be3 {[%clk 0:00:14.1]} 23... Nd5 {[%clk 0:00:19.9]} 24. Na3 {[%clk
0:00:12.4]} 24... Qa6 {[%clk 0:00:18.3]} 25. Nc4 {[%clk 0:00:12]} 25... Nxe3
{[%clk 0:00:18.5]} 26. Qxe3 {[%clk 0:00:12.6]} 26... Bf6 {[%clk 0:00:17.7]} 27.
Bxe4 {[%clk 0:00:12]} 27... Bd4 {[%clk 0:00:17.2]} 28. Qxd4 {[%clk 0:00:07.5]}
28... cxd4 {[%clk 0:00:16.9]} 29. Bxd3 {[%clk 0:00:08]} 29... Qc6 {[%clk
0:00:14.4]} 30. Kf2 {[%clk 0:00:02.4]} 30... Rae8 {[%clk 0:00:07]} 0-1

[Event "Late-Titled-Tuesday-Blitz-April-16-2024"]
[Site "Chess.com"]
[Date "2024.04.16"]
[Round "2"]
[White "B_nn_t"]
[Black "WoodlandMagic"]
[Result "1-0"]
[WhiteElo "2567"]
[BlackElo "2818"]
[TimeControl "180+1"]
[EndTime "14:17:40 PDT"]
[Termination "B_nn_t won by resignation"]

1. e4 {[%clk 0:03:00.9]} 1... e5 {[%clk 0:02:57.5]} 2. Nf3 {[%clk 0:03:00.9]}
2... Nf6 {[%clk 0:02:57.4]} 3. Nxe5 {[%clk 0:02:54.3]} 3... d6 {[%clk 0:02:56]}
4. Nf3 {[%clk 0:02:54.2]} 4... Nxe4 {[%clk 0:02:56]} 5. d3 {[%clk 0:02:54.7]}
5... Nf6 {[%clk 0:02:55]} 6. d4 {[%clk 0:02:54.9]} 6... g6 {[%clk 0:02:55.1]} 7.
Bd3 {[%clk 0:02:54.3]} 7... Bg7 {[%clk 0:02:55.3]} 8. c3 {[%clk 0:02:54.3]} 8...
O-O {[%clk 0:02:55.1]} 9. O-O {[%clk 0:02:54.4]} 9... a6 {[%clk 0:02:49.6]} 10.
a4 {[%clk 0:02:53.7]} 10... b6 {[%clk 0:02:47.7]} 11. Re1 {[%clk 0:02:48.4]}
11... Bb7 {[%clk 0:02:45.4]} 12. Bg5 {[%clk 0:02:46.8]} 12... h6 {[%clk
0:02:42.8]} 13. Bxf6 {[%clk 0:02:46.6]} 13... Bxf6 {[%clk 0:02:42.1]} 14. Nbd2
{[%clk 0:02:46.5]} 14... Bg7 {[%clk 0:02:38.2]} 15. Be4 {[%clk 0:02:46.1]} 15...
d5 {[%clk 0:02:37]} 16. Bd3 {[%clk 0:02:44.6]} 16... c5 {[%clk 0:02:37.4]} 17.
Ne5 {[%clk 0:02:42.4]} 17... Nc6 {[%clk 0:02:32.5]} 18. Ndf3 {[%clk 0:02:38.7]}
18... c4 {[%clk 0:02:24.7]} 19. Bc2 {[%clk 0:02:35.1]} 19... b5 {[%clk
0:02:24.5]} 20. axb5 {[%clk 0:02:33.9]} 20... axb5 {[%clk 0:02:24.5]} 21. Rxa8
{[%clk 0:02:33.4]} 21... Bxa8 {[%clk 0:02:25.4]} 22. h4 {[%clk 0:02:28]} 22...
b4 {[%clk 0:01:58.6]} 23. h5 {[%clk 0:02:26.8]} 23... g5 {[%clk 0:01:54.9]} 24.
Nxc6 {[%clk 0:02:19.1]} 24... Bxc6 {[%clk 0:01:54.6]} 25. Ne5 {[%clk 0:02:19.7]}
25... Bd7 {[%clk 0:01:15.1]} 26. Nxd7 {[%clk 0:02:11]} 26... Qxd7 {[%clk
0:01:14.9]} 27. Bb1 {[%clk 0:02:10.5]} 27... bxc3 {[%clk 0:01:09.6]} 28. bxc3
{[%clk 0:02:10.4]} 28... Rb8 {[%clk 0:01:07.6]} 29. Qf3 {[%clk 0:02:01.9]} 29...
Rb3 {[%clk 0:00:58.9]} 30. Bf5 {[%clk 0:01:56.7]} 30... Qd8 {[%clk 0:00:59]} 31.
Re3 {[%clk 0:01:43.5]} 31... Ra3 {[%clk 0:00:53.5]} 32. g3 {[%clk 0:01:36.8]}
32... Kf8 {[%clk 0:00:49.2]} 33. Kg2 {[%clk 0:01:35.1]} 33... Bf6 {[%clk
0:00:47.1]} 34. Bg4 {[%clk 0:01:27.2]} 34... Kg7 {[%clk 0:00:45.6]} 35. Qf5
{[%clk 0:01:26.8]} 35... Ra2 {[%clk 0:00:34.2]} 36. Bf3 {[%clk 0:01:24.5]} 36...
Ra5 {[%clk 0:00:34]} 37. Bd1 {[%clk 0:01:24.3]} 37... Kf8 {[%clk 0:00:29.9]} 38.
Qh7 {[%clk 0:01:22.2]} 38... Bg7 {[%clk 0:00:29.9]} 39. Qf5 {[%clk 0:01:22.4]}
39... Ra6 {[%clk 0:00:29]} 40. Bf3 {[%clk 0:01:20.4]} 40... Rd6 {[%clk
0:00:28.1]} 41. Re2 {[%clk 0:01:17.6]} 41... Qd7 {[%clk 0:00:27.9]} 42. Qb1
{[%clk 0:01:03.6]} 42... Bf6 {[%clk 0:00:20.8]} 43. Qh7 {[%clk 0:00:56.7]} 43...
Bg7 {[%clk 0:00:20.3]} 44. Qb1 {[%clk 0:00:56.7]} 44... Re6 {[%clk 0:00:19.7]}
45. Bg4 {[%clk 0:00:54]} 45... Bf6 {[%clk 0:00:14.6]} 46. Bxe6 {[%clk
0:00:53.9]} 46... fxe6 {[%clk 0:00:15.1]} 47. Qg6 {[%clk 0:00:53.4]} 47... Ke7
{[%clk 0:00:07.9]} 48. Qxh6 {[%clk 0:00:51.4]} 48... Qe8 {[%clk 0:00:08.2]} 49.
Qh7+ {[%clk 0:00:51.1]} 49... Kd6 {[%clk 0:00:08.6]} 50. Qg6 {[%clk 0:00:50]}
50... Qf8 {[%clk 0:00:08.6]} 51. h6 {[%clk 0:00:47.9]} 51... g4 {[%clk
0:00:08.2]} 52. Qxg4 {[%clk 0:00:45.7]} 1-0

[Event "Late-Titled-Tuesday-Blitz-April-16-2024"]
[Site "Chess.com"]
[Date "2024.04.16"]
[Round "2"]
[White "Kopytkin"]
[Black "dasatcu90"]
[Result "1-0"]
[WhiteElo "2466"]
[BlackElo "2169"]
[TimeControl "180+1"]
[EndTime "14:17:47 PDT"]
[Termination "Kopytkin won by resignation"]

1. d4 {[%clk 0:03:00.9]} 1... d5 {[%clk 0:02:59]} 2. Bg5 {[%clk 0:03:00.9]} 2...
c5 {[%clk 0:02:58.2]} 3. e3 {[%clk 0:03:00.6]} 3... cxd4 {[%clk 0:02:58]} 4.
exd4 {[%clk 0:03:00.8]} 4... Nc6 {[%clk 0:02:57.5]} 5. c3 {[%clk 0:02:59.9]}
5... Bf5 {[%clk 0:02:56.9]} 6. Qb3 {[%clk 0:02:59.4]} 6... Qb6 {[%clk
0:02:54.5]} 7. Qxb6 {[%clk 0:02:53.2]} 7... axb6 {[%clk 0:02:54.4]} 8. Nd2
{[%clk 0:02:49]} 8... f6 {[%clk 0:02:53.1]} 9. Be3 {[%clk 0:02:46.6]} 9... e6
{[%clk 0:02:48.2]} 10. Ngf3 {[%clk 0:02:45.1]} 10... Bd6 {[%clk 0:02:47.8]} 11.
h3 {[%clk 0:02:41.1]} 11... Bg6 {[%clk 0:02:47.3]} 12. Nh4 {[%clk 0:02:40]}
12... Bf7 {[%clk 0:02:47.4]} 13. g4 {[%clk 0:02:40.3]} 13... Nge7 {[%clk
0:02:45.6]} 14. f4 {[%clk 0:02:39.8]} 14... O-O {[%clk 0:02:15.9]} 15. Bd3
{[%clk 0:02:39.5]} 15... e5 {[%clk 0:02:10]} 16. O-O {[%clk 0:02:35.3]} 16... e4
{[%clk 0:02:05]} 17. Be2 {[%clk 0:02:34.6]} 17... Be6 {[%clk 0:02:00.8]} 18. Ng2
{[%clk 0:02:33.5]} 18... f5 {[%clk 0:02:00.7]} 19. b3 {[%clk 0:02:10.9]} 19...
Ra3 {[%clk 0:01:46.6]} 20. Nb1 {[%clk 0:02:10]} 20... Ra7 {[%clk 0:01:37.6]} 21.
a4 {[%clk 0:02:10.1]} 21... Raa8 {[%clk 0:01:24]} 22. Na3 {[%clk 0:02:07.3]}
22... Rac8 {[%clk 0:01:22.8]} 23. Nb5 {[%clk 0:02:07.2]} 23... Bb8 {[%clk
0:01:22.5]} 24. b4 {[%clk 0:02:00.5]} 24... Na7 {[%clk 0:01:20.4]} 25. Nxa7
{[%clk 0:01:40.7]} 25... Bxa7 {[%clk 0:01:21.3]} 26. Bd2 {[%clk 0:01:40.9]}
26... Bb8 {[%clk 0:01:16.1]} 27. g5 {[%clk 0:01:37.7]} 27... Bd6 {[%clk
0:01:05.7]} 28. Kf2 {[%clk 0:01:35.5]} 28... Rc7 {[%clk 0:00:49.9]} 29. Ke3
{[%clk 0:01:35.2]} 29... Rfc8 {[%clk 0:00:48.8]} 30. Rfc1 {[%clk 0:01:35.6]}
30... Ng6 {[%clk 0:00:44.8]} 31. h4 {[%clk 0:01:34.5]} 31... Ne7 {[%clk
0:00:34.1]} 32. Ne1 {[%clk 0:01:28.5]} 32... h6 {[%clk 0:00:29.8]} 33. a5 {[%clk
0:01:19.5]} 33... bxa5 {[%clk 0:00:29]} 34. Rxa5 {[%clk 0:01:19.6]} 34... hxg5
{[%clk 0:00:29.9]} 35. hxg5 {[%clk 0:01:19.3]} 35... Ng6 {[%clk 0:00:30.6]} 36.
Ng2 {[%clk 0:01:18]} 36... Bxb4 {[%clk 0:00:29.6]} 37. cxb4 {[%clk 0:01:05.8]}
37... Rxc1 {[%clk 0:00:30.5]} 38. Bxc1 {[%clk 0:01:06.2]} 38... Rxc1 {[%clk
0:00:31.4]} 39. Rc5 {[%clk 0:01:05.7]} 39... Rxc5 {[%clk 0:00:27.1]} 40. dxc5
{[%clk 0:01:02.4]} 40... Kf8 {[%clk 0:00:27.7]} 41. Bh5 {[%clk 0:00:53]} 41...
Ke7 {[%clk 0:00:28.6]} 42. Bxg6 {[%clk 0:00:53.1]} 42... Kd7 {[%clk 0:00:22.8]}
43. Nh4 {[%clk 0:00:53.1]} 43... Kc6 {[%clk 0:00:22.4]} 44. Bxf5 {[%clk
0:00:50.4]} 44... Bg8 {[%clk 0:00:20.2]} 45. Kd4 {[%clk 0:00:47.7]} 45... Kb5
{[%clk 0:00:20.4]} 46. Bc8 {[%clk 0:00:48.3]} 46... Kxb4 {[%clk 0:00:18.6]} 47.
Bxb7 {[%clk 0:00:48.5]} 47... e3 {[%clk 0:00:17.5]} 48. Nf3 {[%clk 0:00:47.4]}
48... Kb5 {[%clk 0:00:17.3]} 49. g6 {[%clk 0:00:45.8]} 49... e2 {[%clk
0:00:17.2]} 50. f5 {[%clk 0:00:44.8]} 50... Ka5 {[%clk 0:00:12.2]} 51. Bxd5
{[%clk 0:00:44.6]} 1-0

[Event "Late-Titled-Tuesday-Blitz-April-16-2024"]
[Site "Chess.com"]
[Date "2024.04.16"]
[Round "2"]
[White "Doublekk14"]
[Black "Karttunen"]
[Result "0-1"]
[WhiteElo "2392"]
[BlackElo "2692"]
[TimeControl "180+1"]
[EndTime "14:17:48 PDT"]
[Termination "Karttunen won on time"]

1. c4 {[%clk 0:02:49.1]} 1... e5 {[%clk 0:02:59.6]} 2. Nc3 {[%clk 0:02:45]} 2...
Nf6 {[%clk 0:02:57]} 3. e3 {[%clk 0:02:40.8]} 3... Bb4 {[%clk 0:02:56.3]} 4. Qc2
{[%clk 0:02:30]} 4... c6 {[%clk 0:02:52.3]} 5. d3 {[%clk 0:02:28.1]} 5... O-O
{[%clk 0:02:51.5]} 6. Bd2 {[%clk 0:02:27.8]} 6... d5 {[%clk 0:02:51.3]} 7. cxd5
{[%clk 0:02:25.6]} 7... cxd5 {[%clk 0:02:51.4]} 8. Nf3 {[%clk 0:02:26.1]} 8...
Nc6 {[%clk 0:02:51.1]} 9. a3 {[%clk 0:02:23.1]} 9... Bxc3 {[%clk 0:02:50.1]} 10.
bxc3 {[%clk 0:02:22.9]} 10... Bg4 {[%clk 0:02:46.1]} 11. Be2 {[%clk 0:02:22.6]}
11... Rc8 {[%clk 0:02:44.2]} 12. h3 {[%clk 0:02:22.1]} 12... Bh5 {[%clk
0:02:38.9]} 13. Qa4 {[%clk 0:01:41.7]} 13... e4 {[%clk 0:02:30.9]} 14. dxe4
{[%clk 0:01:08.4]} 14... dxe4 {[%clk 0:02:27.4]} 15. Nd4 {[%clk 0:01:07.1]}
15... Bxe2 {[%clk 0:02:26.3]} 16. Kxe2 {[%clk 0:00:58.9]} 16... Ne5 {[%clk
0:02:21.1]} 17. Rhd1 {[%clk 0:00:48.8]} 17... Nc4 {[%clk 0:02:12.6]} 18. Qb3
{[%clk 0:00:46]} 18... Qc7 {[%clk 0:02:02.3]} 19. g3 {[%clk 0:00:43.2]} 19...
Qd7 {[%clk 0:01:57.6]} 20. Rh1 {[%clk 0:00:38.8]} 20... a6 {[%clk 0:01:45.7]}
21. Rad1 {[%clk 0:00:34.7]} 21... Rc5 {[%clk 0:01:38.9]} 22. Kf1 {[%clk
0:00:33.4]} 22... Rfc8 {[%clk 0:01:36.7]} 23. Kg2 {[%clk 0:00:32.9]} 23... h5
{[%clk 0:01:06.1]} 24. Bc1 {[%clk 0:00:28.5]} 24... Qc7 {[%clk 0:00:52.6]} 25.
Ne2 {[%clk 0:00:25]} 25... Rg5 {[%clk 0:00:46.4]} 26. h4 {[%clk 0:00:22.7]}
26... Rb5 {[%clk 0:00:43]} 27. Qc2 {[%clk 0:00:22.2]} 27... Qe5 {[%clk 0:00:38]}
28. Rd4 {[%clk 0:00:21.2]} 28... Qf5 {[%clk 0:00:35]} 29. Nf4 {[%clk 0:00:21.3]}
29... Ne5 {[%clk 0:00:34.9]} 30. Rhd1 {[%clk 0:00:19.8]} 30... Qg4 {[%clk
0:00:31.9]} 31. Qe2 {[%clk 0:00:18.6]} 31... Nf3 {[%clk 0:00:30.2]} 32. Rd8+
{[%clk 0:00:17.6]} 32... Rxd8 {[%clk 0:00:30.7]} 33. Rxd8+ {[%clk 0:00:17.5]}
33... Kh7 {[%clk 0:00:31.4]} 34. Kf1 {[%clk 0:00:08.6]} 34... Rb1 {[%clk
0:00:29.7]} 35. Rd1 {[%clk 0:00:07]} 35... Qc8 {[%clk 0:00:27.6]} 36. c4 {[%clk
0:00:06.2]} 36... b5 {[%clk 0:00:23.5]} 37. Qc2 {[%clk 0:00:06]} 37... Qxc4+
{[%clk 0:00:22]} 38. Qxc4 {[%clk 0:00:05.1]} 38... bxc4 {[%clk 0:00:22.9]} 39.
Ke2 {[%clk 0:00:04.5]} 39... c3 {[%clk 0:00:23.4]} 40. Bb2 {[%clk 0:00:02.4]}
40... Rxb2+ {[%clk 0:00:23.5]} 0-1